bitfinex/quotes_SOLUSD_20230104
["timestamp","ask_amount","ask_price","bid_price","bid_amount"]
[1672855176761,30.0,13.489,13.481,33.4636513]
[1672855176978,43.37416396,13.489,13.481,33.4636513]
[1672855177188,141.25713265,13.488,13.481,33.4636513]
[1672855177378,30.0,13.487,13.481,33.4636513]
[1672855177591,55.66,13.486,13.481,33.4636513]
[1672855177802,30.0,13.485,13.481,33.4636513]
[1672855180011,30.0,13.485,13.481,21.4636513]
[1672855180535,85.66,13.485,13.481,21.4636513]
[1672855185070,55.66,13.485,13.481,21.4636513]
[1672855185392,30.0,13.485,13.481,21.4636513]
[1672855191480,82.23296869,13.485,13.481,21.4636513]
[1672855191694,55.67,13.484,13.481,21.4636513]
[1672855191882,55.67,13.484,13.481,0.0036513]
[1672855192094,30.0,13.483,13.481,0.0036513]
[1672855192322,30.0,13.483,13.47,116.706]
[1672855192533,30.0,13.483,13.474,3.43853159]
[1672855194304,30.0,13.485,13.474,3.43853159]
[1672855194512,30.0,13.485,13.476,30.0]
[1672855194734,55.66,13.486,13.475,109.0766]
[1672855195356,55.65,13.487,13.475,109.0766]
[1672855195565,30.0,13.486,13.475,109.0766]
[1672855195781,55.66,13.485,13.475,109.0766]
[1672855196416,55.65,13.487,13.475,109.0766]
[1672855196623,30.0,13.487,13.475,109.0766]
[1672855197037,30.0,13.485,13.475,109.0766]
[1672855202736,82.23296869,13.485,13.475,109.0766]
[1672855205799,52.23296869,13.485,13.475,109.0766]
[1672855208112,55.65,13.487,13.475,109.0766]
[1672855208521,107.88296869,13.488,13.475,109.0766]
[1672855208737,6.26,13.49,13.476,20.0]
[1672855208931,30.0,13.493,13.477,30.0]
[1672855209145,30.0,13.493,13.477,82.54]
[1672855209358,55.63,13.492,13.477,30.0]
[1672855209574,30.0,13.491,13.477,30.0]
[1672855210403,30.0,13.491,13.476,72.41]
[1672855210819,6.27,13.49,13.476,72.41]
[1672855211053,6.27,13.49,13.477,30.0]
[1672855212324,6.27,13.49,13.476,72.41]
[1672855212547,30.0,13.488,13.476,20.0]
[1672855213475,127.51713265,13.49,13.476,20.0]
[1672855213476,61.91,13.49,13.476,20.0]
[1672855213696,55.64,13.491,13.477,74.1911836]
[1672855213888,55.64,13.491,13.478,30.0]
[1672855214098,85.63,13.492,13.478,30.0]
[1672855215267,30.0,13.499,13.478,30.0]
[1672855215268,6.29,13.5,13.48,6.27]
[1672855215479,30.0,13.504,13.482,30.0]
[1672855215680,13.37416396,13.503,13.483,75.67]
[1672855215895,13.37416396,13.503,13.484,30.0]
[1672855215896,6.26,13.5,13.484,30.0]
[1672855216088,75.6,13.499,13.48,55.68]
[1672855216303,30.0,13.498,13.479,55.69]
[1672855216507,75.61,13.497,13.479,55.69]
[1672855216726,88.98416396,13.497,13.479,55.69]
[1672855217047,43.37416396,13.496,13.479,55.69]
[1672855217373,68.99416396,13.495,13.479,55.69]
[1672855217584,30.0,13.494,13.479,55.69]
[1672855218008,55.63,13.493,13.479,55.69]
[1672855218190,85.62,13.494,13.479,55.69]
[1672855218623,98.99416396,13.494,13.479,30.0]
[1672855219352,98.99416396,13.494,13.481,30.0]
[1672855220304,85.62,13.494,13.481,30.0]
[1672855220504,85.62,13.495,13.481,30.0]
[1672855220721,68.99416396,13.495,13.481,30.0]
[1672855220935,20.0,13.497,13.483,30.0]
[1672855221148,50.0,13.498,13.483,30.0]
[1672855221362,55.61,13.497,13.483,85.67]
[1672855221797,55.61,13.497,13.483,30.0]
[1672855224628,75.61,13.498,13.483,30.0]
[1672855225162,75.61,13.498,13.482,174.4528]
[1672855225477,30.0,13.497,13.482,118.7828]
[1672855225690,55.62,13.496,13.482,118.7828]
[1672855225898,30.0,13.495,13.482,118.7828]
[1672855228415,85.61,13.497,13.482,118.7828]
[1672855228631,85.61,13.497,13.483,30.0]
[1672855228938,20.0,13.498,13.483,30.0]
[1672855229149,20.0,13.498,13.484,55.67]
[1672855229357,20.0,13.498,13.485,30.0]
[1672855230206,50.0,13.498,13.485,30.0]
[1672855230927,20.0,13.498,13.485,30.0]
[1672855232839,50.0,13.498,13.484,55.67]
[1672855233026,50.0,13.498,13.483,55.67]
[1672855233682,30.0,13.496,13.483,30.0]
[1672855234123,30.0,13.496,13.483,85.67]
[1672855235897,30.0,13.496,13.483,55.67]
[1672855236110,30.0,13.496,13.482,118.7828]
[1672855236325,85.62,13.496,13.482,118.7828]
[1672855237379,85.62,13.496,13.484,30.0]
[1672855237999,85.62,13.496,13.483,30.0]
[1672855238739,85.62,13.496,13.482,118.7828]
[1672855239475,85.62,13.496,13.483,30.0]
[1672855239695,55.62,13.496,13.483,30.0]
[1672855239879,20.0,13.498,13.483,107.4511836]
[1672855240094,20.0,13.497,13.484,21.7811836]
[1672855240303,75.6,13.499,13.484,21.7811836]
[1672855240514,75.6,13.499,13.485,55.66]
[1672855240725,30.0,13.498,13.486,30.0]
[1672855240948,20.0,13.497,13.486,30.0]
[1672855241145,20.0,13.497,13.485,21.7811836]
[1672855242528,75.61,13.497,13.485,21.7811836]
[1672855242734,30.0,13.496,13.485,21.7811836]
[1672855242945,20.0,13.497,13.485,21.7811836]
[1672855244929,20.0,13.498,13.485,21.7811836]
[1672855245875,55.61,13.497,13.485,21.7811836]
[1672855246084,30.0,13.497,13.485,21.7811836]
[1672855247365,55.62,13.496,13.485,21.7811836]
[1672855247575,30.0,13.495,13.485,21.7811836]
[1672855249249,55.62,13.496,13.485,21.7811836]
[1672855250734,30.0,13.495,13.485,21.7811836]
[1672855251137,30.0,13.495,13.482,118.7828]
[1672855251346,30.0,13.495,13.483,21.7811836]
[1672855252812,30.0,13.495,13.483,51.7811836]
[1672855253258,55.62,13.496,13.483,51.7811836]
[1672855253778,30.0,13.496,13.483,51.7811836]
[1672855253982,30.0,13.496,13.483,21.7811836]
[1672855254194,30.0,13.494,13.483,21.7811836]
[1672855254406,55.63,13.493,13.483,21.7811836]
[1672855255552,30.0,13.492,13.482,118.7828]
[1672855255754,55.64,13.491,13.482,118.7828]
[1672855255964,30.0,13.492,13.482,118.7828]
[1672855257028,30.0,13.492,13.477,55.69]
[1672855257239,6.25,13.49,13.472,55.72]
[1672855257462,6.25,13.49,13.476,11.13195218]
[1672855257463,75.65,13.489,13.476,11.13195218]
[1672855257670,92.67947745,13.489,13.476,11.13195218]
[1672855257855,30.0,13.488,13.476,11.13195218]
[1672855258062,30.0,13.488,13.477,77.4711836]
[1672855258285,55.64,13.491,13.477,77.4711836]
[1672855258492,55.64,13.491,13.478,51.7811836]
[1672855258707,30.0,13.492,13.478,51.7811836]
[1672855258924,55.64,13.491,13.479,21.7811836]
[1672855259136,30.0,13.492,13.479,21.7811836]
[1672855261013,6.25,13.49,13.479,21.7811836]
[1672855261458,36.25,13.49,13.479,21.7811836]
[1672855261669,36.25,13.49,13.476,119.6464]
[1672855261863,93.28496294,13.489,13.471,55.72]
[1672855262069,233.74933867,13.489,13.471,21.7811836]
[1672855262280,66.22722301,13.488,13.469,174.3739]
[1672855262506,85.65,13.487,13.469,174.3739]
[1672855262695,30.0,13.485,13.469,174.3739]
[1672855262912,85.66,13.485,13.469,174.3739]
[1672855263564,30.0,13.485,13.469,174.3739]
[1672855265445,30.0,13.486,13.47,30.0]
[1672855265639,30.0,13.486,13.471,55.72]
[1672855266088,85.66,13.486,13.471,55.72]
[1672855266789,30.0,13.486,13.471,55.72]
[1672855267218,30.0,13.486,13.469,174.3739]
[1672855267430,30.0,13.484,13.469,174.3739]
[1672855267969,30.0,13.484,13.469,118.6439]
[1672855268188,55.67,13.483,13.47,55.72]
[1672855268492,30.0,13.484,13.469,174.3739]
[1672855268895,30.0,13.486,13.469,174.3739]
[1672855269105,30.0,13.486,13.47,30.0]
[1672855269339,30.0,13.486,13.471,55.72]
[1672855269654,55.66,13.485,13.47,55.72]
[1672855269863,55.66,13.485,13.471,30.0]
[1672855270074,55.66,13.485,13.472,55.72]
[1672855270288,47.63496294,13.486,13.472,55.72]
[1672855270474,47.63496294,13.486,13.471,55.72]
[1672855270903,47.63496294,13.486,13.47,55.72]
[1672855271338,30.0,13.484,13.47,55.72]
[1672855271543,30.0,13.484,13.469,118.6439]
[1672855271768,47.63496294,13.484,13.469,174.3739]
[1672855272073,6.25,13.48,13.469,55.73]
[1672855272293,6.25,13.48,13.468,189.0165961]
[1672855272484,6.25,13.48,13.469,55.73]
[1672855273550,30.0,13.482,13.469,55.73]
[1672855276163,167.24526294,13.484,13.469,55.73]
[1672855277218,6.22,13.48,13.469,55.73]
[1672855277969,6.22,13.48,13.468,189.0165961]
[1672855278283,23.83886233,13.48,13.468,189.0165961]
[1672855278473,79.51886233,13.48,13.468,189.0165961]
[1672855278684,30.0,13.479,13.468,189.0165961]
[1672855279632,61.9,13.48,13.468,189.0165961]
[1672855279633,6.22,13.48,13.468,189.0165961]
[1672855280688,30.0,13.483,13.468,189.0165961]
[1672855280898,30.0,13.483,13.469,167.1735]
[1672855281309,85.67,13.483,13.469,167.1735]
[1672855281533,6.2,13.48,13.468,189.0165961]
[1672855282928,149.6103,13.484,13.468,189.0165961]
[1672855283347,6.22,13.48,13.469,55.73]
[1672855283556,6.22,13.48,13.468,189.0165961]
[1672855283956,23.83886233,13.48,13.468,189.0165961]
[1672855284275,30.0,13.479,13.468,189.0165961]
[1672855284930,47.61886233,13.479,13.468,73.9774961]
[1672855285116,75.69,13.478,13.473,13.9169836]
[1672855285330,75.69,13.478,13.468,73.9774961]
[1672855285536,116.58128259,13.477,13.458,55.77]
[1672855285751,6.22,13.47,13.458,55.77]
[1672855286274,6.22,13.47,13.457,109.1758]
[1672855286275,163.04855909,13.469,13.43,31.18]
[1672855286487,31.26,13.46,13.441,109.1758]
[1672855286703,30.0,13.458,13.452,6.4855141]
[1672855287021,75.78,13.457,13.452,6.4855141]
[1672855287217,30.0,13.456,13.452,6.4855141]
[1672855287433,55.79,13.455,13.452,6.4855141]
[1672855287643,89.18738636,13.456,13.452,6.4855141]
[1672855287854,30.0,13.456,13.452,6.4855141]
[1672855288479,75.78,13.457,13.452,6.4855141]
[1672855288480,55.78,13.457,13.452,6.4855141]
[1672855288801,30.0,13.458,13.452,6.4855141]
[1672855289023,31.22,13.47,13.452,6.4855141]
[1672855289024,30.0,13.467,13.452,6.4855141]
[1672855289232,107.15795961,13.466,13.452,6.4855141]
[1672855289444,107.52948007,13.466,13.452,6.4855141]
[1672855289649,30.0,13.465,13.452,6.4855141]
[1672855289855,55.75,13.464,13.452,6.4855141]
[1672855290089,30.0,13.463,13.452,6.4855141]
[1672855290289,55.76,13.462,13.452,6.4855141]
[1672855290478,30.0,13.461,13.452,6.4855141]
[1672855296707,20.05769534,13.463,13.452,6.4855141]
[1672855298690,50.05769534,13.463,13.452,6.4855141]
[1672855299109,30.0,13.461,13.452,6.4855141]
[1672855299739,30.0,13.459,13.452,6.4855141]
[1672855299943,75.77,13.458,13.452,6.4855141]
[1672855300158,30.0,13.457,13.452,6.4855141]
[1672855300368,55.78,13.456,13.452,6.4855141]
[1672855300592,30.0,13.455,13.442,111.41]
[1672855300807,55.79,13.454,13.442,111.41]
[1672855301022,30.0,13.453,13.442,111.41]
[1672855301343,55.79,13.454,13.442,111.41]
[1672855301344,55.8,13.452,13.442,111.41]
[1672855301544,75.84769534,13.454,13.442,111.41]
[1672855301955,30.0,13.453,13.442,111.41]
[1672855303012,30.0,13.451,13.442,111.41]
[1672855303840,85.79,13.453,13.442,111.41]
[1672855304466,147.79543148,13.453,13.442,111.41]
[1672855305659,147.79543148,13.453,13.434,55.87]
[1672855305868,20.0,13.452,13.432,55.88]
[1672855306057,30.0,13.45,13.431,33.4636513]
[1672855306263,75.81,13.449,13.443,4.0534053]
[1672855306497,198.95789511,13.449,13.443,4.0534053]
[1672855306710,113.79491155,13.448,13.443,4.0534053]
[1672855307018,30.0,13.446,13.443,4.0534053]
[1672855307214,55.83,13.445,13.443,4.0534053]
[1672855308480,6.2,13.45,13.443,4.0534053]
[1672855312474,25.19,13.45,13.443,4.0534053]
[1672855314894,170.8517,13.454,13.443,4.0534053]
[1672855315111,115.0617,13.454,13.443,4.0534053]
[1672855315321,20.05769534,13.456,13.443,4.0534053]
[1672855315541,55.79,13.455,13.443,4.0534053]
[1672855315733,202.41939815,13.459,13.443,4.0534053]
[1672855315734,75.82769534,13.458,13.443,34.0534053]
[1672855315947,25.0,13.46,13.444,75.83]
[1672855316684,25.0,13.46,13.445,112.2729]
[1672855316889,25.0,13.46,13.446,105.82]
[1672855317096,25.0,13.46,13.447,116.2772]
[1672855317312,25.0,13.46,13.449,30.0]
[1672855318995,30.0,13.464,13.45,55.81]
[1672855319205,25.19,13.46,13.449,85.81]
[1672855319409,25.19,13.46,13.449,55.81]
[1672855319620,45.24769534,13.46,13.448,55.82]
[1672855319839,45.24769534,13.46,13.449,30.0]
[1672855320047,45.24769534,13.46,13.448,55.82]
[1672855321319,45.24769534,13.46,13.443,4.0534053]
[1672855321320,55.77,13.459,13.443,4.0534053]
[1672855321514,20.0,13.458,13.443,4.0534053]
[1672855321719,30.0,13.456,13.443,4.0534053]
[1672855321930,55.79,13.455,13.443,4.0534053]
[1672855322139,75.84769534,13.455,13.443,4.0534053]
[1672855322360,30.0,13.454,13.443,4.0534053]
[1672855322572,50.05769534,13.454,13.443,4.0534053]
[1672855323197,20.05769534,13.453,13.443,4.0534053]
[1672855323430,25.11,13.45,13.443,4.0534053]
[1672855323622,30.0,13.448,13.443,4.0534053]
[1672855323941,75.82,13.447,13.443,4.0534053]
[1672855324578,30.0,13.446,13.443,4.0534053]
[1672855325082,55.83,13.445,13.443,4.0534053]
[1672855325292,30.0,13.444,13.443,4.0534053]
[1672855325720,30.0,13.446,13.443,4.0534053]
[1672855326999,55.83,13.445,13.443,4.0534053]
[1672855327188,85.82,13.446,13.443,4.0534053]
[1672855327402,18.9684609,13.445,13.443,4.0534053]
[1672855328592,55.83,13.444,13.443,4.0534053]
[1672855328801,34.05,13.443,13.431,33.4636513]
[1672855329010,25.19,13.44,13.431,33.4636513]
[1672855330046,20.0,13.439,13.431,33.4636513]
[1672855330260,30.0,13.438,13.431,33.4636513]
[1672855330470,75.86,13.437,13.431,33.4636513]
[1672855330695,30.0,13.436,13.431,33.4636513]
[1672855332273,18.9684609,13.436,13.431,33.4636513]
[1672855332812,30.0,13.435,13.431,33.4636513]
[1672855333198,48.9684609,13.435,13.431,33.4636513]
[1672855334474,149.38294541,13.435,13.431,33.4636513]
[1672855334685,100.59989238,13.435,13.431,33.4636513]
[1672855335327,156.46989238,13.435,13.431,33.4636513]
[1672855335743,100.59989238,13.435,13.431,33.4636513]
[1672855337032,70.59989238,13.435,13.431,33.4636513]
[1672855337740,18.9684609,13.435,13.431,33.4636513]
[1672855337952,182.21,13.44,13.431,33.4636513]
[1672855338162,25.41,13.44,13.431,33.4636513]
[1672855339435,126.1,13.44,13.431,33.4636513]
[1672855340269,181.95,13.44,13.431,33.4636513]
[1672855340699,126.1,13.44,13.431,33.4636513]
[1672855341206,30.0,13.439,13.431,33.4636513]
[1672855342042,126.1,13.44,13.431,33.4636513]
[1672855342371,30.0,13.439,13.431,33.4636513]
[1672855343327,126.1,13.44,13.431,33.4636513]
[1672855344577,55.83,13.445,13.431,33.4636513]
[1672855344789,55.82,13.446,13.432,55.88]
[1672855345109,18.44130454,13.448,13.433,20.0]
[1672855345316,113.55930818,13.45,13.433,20.0]
[1672855345317,25.34,13.45,13.434,85.87]
[1672855345635,25.34,13.45,13.435,20.0]
[1672855345849,25.34,13.45,13.436,55.86]
[1672855346251,55.79,13.455,13.437,51.7811836]
[1672855346462,55.78,13.456,13.439,30.0]
[1672855346679,55.78,13.456,13.44,279.9713]
[1672855347107,55.77,13.458,13.44,279.9713]
[1672855347622,55.77,13.458,13.441,30.0]
[1672855347836,48.44130454,13.457,13.443,30.0]
[1672855348266,30.0,13.457,13.443,30.0]
[1672855349420,30.0,13.459,13.443,30.0]
[1672855349623,75.77,13.458,13.444,55.83]
[1672855349843,30.0,13.457,13.445,30.0]
[1672855350050,85.78,13.457,13.445,30.0]
[1672855350492,30.0,13.457,13.444,55.83]
[1672855351209,30.0,13.457,13.443,30.0]
[1672855352362,30.0,13.457,13.442,55.84]
[1672855352778,30.0,13.455,13.442,55.84]
[1672855354467,30.0,13.455,13.442,30.0]
[1672855354781,48.44130454,13.455,13.441,55.84]
[1672855357305,30.0,13.453,13.441,55.84]
[1672855359416,48.44130454,13.455,13.441,55.84]
[1672855359626,30.0,13.455,13.441,55.84]
[1672855363224,104.22130454,13.457,13.441,55.84]
[1672855363541,55.78,13.457,13.442,30.0]
[1672855363731,20.0,13.458,13.442,30.0]
[1672855363939,30.0,13.454,13.443,55.84]
[1672855364170,30.0,13.454,13.444,30.0]
[1672855364364,299.7,13.455,13.444,30.0]
[1672855367206,299.7,13.455,13.444,29.5]
[1672855367430,30.0,13.454,13.442,107.6211836]
[1672855368366,299.7,13.455,13.442,107.6211836]
[1672855369303,299.7,13.455,13.442,51.7811836]
[1672855370162,30.0,13.454,13.442,21.7811836]
[1672855371743,30.0,13.454,13.441,55.84]
[1672855372040,30.0,13.454,13.44,224.1213]
[1672855372230,55.79,13.454,13.44,224.1213]
[1672855372439,299.7,13.455,13.442,30.0]
[1672855373294,299.7,13.455,13.444,30.0]
[1672855375290,299.7,13.455,13.445,75.83]
[1672855375480,299.7,13.455,13.446,30.0]
[1672855375690,299.7,13.455,13.447,20.0]
[1672855376339,299.7,13.455,13.447,131.9149]
[1672855377899,299.7,13.455,13.447,111.9149]
[1672855378122,30.0,13.454,13.441,55.84]
[1672855378320,30.0,13.454,13.44,224.1213]
[1672855378856,85.79,13.454,13.44,245.9024836]
[1672855379054,85.79,13.454,13.441,85.84]
[1672855379266,30.0,13.454,13.441,85.84]
[1672855379471,299.7,13.455,13.441,85.84]
[1672855379792,299.7,13.455,13.441,107.6211836]
[1672855381171,30.0,13.454,13.441,107.6211836]
[1672855381991,299.7,13.455,13.441,107.6211836]
[1672855382544,299.7,13.455,13.442,20.0]
[1672855382854,299.7,13.455,13.443,85.84]
[1672855383075,299.7,13.455,13.444,20.0]
[1672855383251,299.7,13.455,13.445,55.83]
[1672855383464,299.7,13.455,13.447,30.0]
[1672855383884,299.7,13.455,13.446,21.7811836]
[1672855384094,299.7,13.455,13.447,20.0]
[1672855384934,299.7,13.455,13.448,30.0]
[1672855385466,299.7,13.455,13.443,30.0]
[1672855385467,30.0,13.453,13.442,54.38955729]
[1672855385671,30.0,13.453,13.44,224.1213]
[1672855385877,30.0,13.451,13.44,224.1213]
[1672855386088,55.8,13.452,13.44,224.1213]
[1672855386303,30.0,13.453,13.441,30.0]
[1672855386929,55.79,13.454,13.441,30.0]
[1672855387153,299.7,13.455,13.442,97.6211836]
[1672855387471,299.7,13.455,13.443,21.7811836]
[1672855387796,299.7,13.455,13.444,105.83]
[1672855388192,299.7,13.455,13.445,21.7811836]
[1672855388527,299.7,13.455,13.447,30.0]
[1672855388738,299.7,13.455,13.449,30.0]
[1672855392086,55.74,13.466,13.45,81.0]
[1672855392415,55.73,13.469,13.451,20.0]
[1672855392600,55.71,13.473,13.452,55.8]
[1672855392815,55.71,13.473,13.453,50.0]
[1672855393032,111.1479,13.474,13.46,25.19]
[1672855393573,111.1479,13.474,13.46,46.9711836]
[1672855393758,111.1479,13.474,13.462,30.0]
[1672855393969,55.69,13.479,13.462,30.0]
[1672855394179,173.8927,13.479,13.462,51.7811836]
[1672855394607,20.0,13.478,13.462,51.7811836]
[1672855394819,55.7,13.477,13.462,51.7811836]
[1672855399338,20.0,13.478,13.462,51.7811836]
[1672855399745,20.0,13.478,13.464,30.0]
[1672855399960,55.68,13.481,13.464,30.0]
[1672855400193,108.7964,13.487,13.47,25.19]
[1672855400402,55.66,13.486,13.471,55.72]
[1672855400592,55.66,13.486,13.471,77.5011836]
[1672855400803,55.66,13.486,13.472,51.7811836]
[1672855401015,55.66,13.486,13.472,30.0]
[1672855401532,55.66,13.486,13.473,21.7811836]
[1672855401747,55.15,13.489,13.475,30.0]
[1672855401960,68.90269815,13.49,13.475,30.0]
[1672855402172,55.65,13.489,13.473,55.71]
[1672855402380,55.65,13.489,13.472,30.0]
[1672855402381,112.76229303,13.489,13.472,30.0]
[1672855402813,30.0,13.487,13.472,30.0]
[1672855403036,55.66,13.486,13.472,30.0]
[1672855403642,30.0,13.485,13.472,30.0]
[1672855403850,55.67,13.484,13.471,30.0]
[1672855404287,55.67,13.484,13.469,55.73]
[1672855404487,55.67,13.484,13.468,119.7488]
[1672855404693,55.67,13.484,13.469,30.0]
[1672855404694,30.0,13.483,13.469,30.0]
[1672855404902,55.67,13.482,13.469,30.0]
[1672855405962,55.67,13.482,13.469,51.7811836]
[1672855406278,142.6357,13.487,13.47,25.19]
[1672855406279,55.66,13.485,13.47,25.19]
[1672855406473,112.6357,13.487,13.471,20.0]
[1672855406681,112.6357,13.487,13.473,30.0]
[1672855406895,55.65,13.489,13.474,75.71]
[1672855407105,55.65,13.489,13.474,207.5191836]
[1672855407537,55.65,13.489,13.475,21.7811836]
[1672855407750,55.63,13.493,13.477,30.0]
[1672855407964,55.63,13.493,13.478,55.69]
[1672855408159,99.33269815,13.494,13.478,77.4711836]
[1672855408369,55.62,13.494,13.479,51.7811836]
[1672855408583,113.7896,13.495,13.479,51.7811836]
[1672855408584,113.7896,13.495,13.48,55.68]
[1672855408795,113.7896,13.495,13.481,30.0]
[1672855409011,113.7896,13.495,13.482,55.67]
[1672855409208,113.7896,13.495,13.482,77.4511836]
[1672855409415,55.61,13.498,13.483,30.0]
[1672855409644,55.61,13.498,13.483,51.7811836]
[1672855409645,20.0,13.497,13.483,51.7811836]
[1672855409844,20.0,13.497,13.484,21.7811836]
[1672855410070,55.62,13.496,13.483,30.0]
[1672855411210,20.0,13.497,13.484,21.7811836]
[1672855411428,20.0,13.498,13.484,21.7811836]
[1672855411734,55.6,13.501,13.486,30.0]
[1672855411946,55.6,13.501,13.487,75.65]
[1672855412163,163.9975,13.502,13.488,30.0]
[1672855412367,104.07536482,13.507,13.488,30.0]
[1672855412584,30.0,13.506,13.488,30.0]
[1672855412781,55.58,13.505,13.488,51.7811836]
[1672855413412,55.58,13.506,13.489,113.706]
[1672855413623,55.58,13.506,13.488,51.7811836]
[1672855413624,30.0,13.505,13.49,30.0]
[1672855413833,55.58,13.504,13.49,30.0]
[1672855415744,104.08536482,13.504,13.49,30.0]
[1672855416157,30.0,13.503,13.49,30.0]
[1672855416352,55.59,13.502,13.49,30.0]
[1672855416566,104.09536482,13.502,13.49,30.0]
[1672855417620,55.59,13.502,13.49,30.0]
[1672855417840,55.58,13.505,13.49,30.0]
[1672855418046,30.0,13.504,13.49,30.0]
[1672855418266,55.59,13.503,13.49,30.0]
[1672855419189,55.59,13.503,13.487,75.65]
[1672855419400,55.59,13.503,13.48,109.8514]
[1672855419401,124.89,13.5,13.48,109.8514]
[1672855419609,30.0,13.498,13.481,30.0]
[1672855419843,30.0,13.496,13.481,30.0]
[1672855420032,55.62,13.495,13.481,30.0]
[1672855420237,74.06130454,13.495,13.481,30.0]
[1672855420464,130.98272549,13.495,13.481,30.0]
[1672855420781,30.0,13.493,13.481,30.0]
[1672855420979,55.63,13.492,13.477,55.69]
[1672855421197,130.99272549,13.492,13.476,30.0]
[1672855421405,105.36272549,13.491,13.476,30.0]
[1672855421613,55.64,13.49,13.476,30.0]
[1672855421830,112.56142095,13.49,13.476,30.0]
[1672855422160,56.92142095,13.489,13.477,20.0]
[1672855422663,56.92142095,13.489,13.478,30.0]
[1672855426149,55.64,13.491,13.478,30.0]
[1672855426574,74.08130454,13.491,13.478,30.0]
[1672855427301,74.08130454,13.491,13.478,139.3329]
[1672855431174,74.08130454,13.491,13.477,20.0]
[1672855431384,30.0,13.49,13.477,20.0]
[1672855431594,30.0,13.49,13.476,20.0]
[1672855431595,55.65,13.489,13.476,20.0]
[1672855431913,30.0,13.488,13.476,20.0]
[1672855432138,55.65,13.487,13.476,20.0]
[1672855432327,30.0,13.486,13.476,20.0]
[1672855432751,55.65,13.487,13.476,20.0]
[1672855433175,74.09130454,13.487,13.476,20.0]
[1672855433386,20.0,13.486,13.472,30.0]
[1672855433610,55.66,13.485,13.472,30.0]
[1672855433807,30.0,13.484,13.472,30.0]
[1672855434019,48.44130454,13.484,13.472,30.0]
[1672855434666,55.66,13.485,13.472,30.0]
[1672855434973,55.65,13.489,13.474,30.0]
[1672855435188,81.86142095,13.49,13.474,30.0]
[1672855435189,43.31557353,13.49,13.48,24.98]
[1672855435384,18.44130454,13.494,13.481,55.68]
[1672855435586,18.44130454,13.494,13.477,55.7]
[1672855435800,18.44130454,13.494,13.479,30.0]
[1672855436018,18.44130454,13.494,13.48,55.68]
[1672855436232,18.44130454,13.494,13.481,30.0]
[1672855438014,18.44130454,13.494,13.482,55.67]
[1672855438226,18.44130454,13.494,13.483,30.0]
[1672855439059,55.61,13.497,13.483,30.0]
[1672855439284,18.44130454,13.496,13.483,30.0]
[1672855439480,55.59,13.502,13.484,97.4511836]
[1672855439684,115.6294,13.502,13.484,206.7303836]
[1672855439905,115.6294,13.502,13.485,30.0]